bitfinex-derivatives/quotes_SOLF0:USTF0_20250527
["timestamp","ask_amount","ask_price","bid_price","bid_amount"]
[1748332882901,8.09608926,175.99,175.83,2.0552]
[1748332883197,5.6829,175.92,175.86,5.6845]
[1748332883402,0.03639949,175.91,175.87,0.04323549]
[1748332883803,5.6835,175.9,175.87,0.04323549]
[1748332883995,0.03639949,175.91,175.87,0.04323549]
[1748332884900,5.6837,175.9,175.87,0.04323549]
[1748332885199,0.03639949,175.91,175.87,0.04323549]
[1748332885400,0.03639949,175.91,175.88,5.6842]
[1748332887206,0.03639949,175.91,175.87,5.72773549]
[1748332887703,0.03639949,175.91,175.89,5.6836]
[1748332888202,0.03639949,175.91,175.87,0.04323549]
[1748332888792,0.03639949,175.91,175.89,5.6836]
[1748332889197,5.6812,175.98,175.93,5.6823]
[1748332889500,8.09608926,176.03,175.83,2.0552]
[1748332889702,5.6815,175.97,175.83,2.0552]
[1748332889905,8.09608926,176.01,175.91,5.6829]
[1748332890199,0.03647286,175.98,175.94,0.0424006]
[1748332890404,0.03692568,175.98,175.94,0.04328345]
[1748332892405,5.71792568,175.98,175.94,0.04328345]
[1748332893201,0.03692568,175.98,175.94,0.04328345]
[1748332893708,0.03692568,175.98,175.94,5.72548345]
[1748332894102,0.03692568,175.98,175.94,0.04328345]
[1748332894806,0.03692568,175.98,175.95,5.6819]
[1748332895001,0.03692568,175.98,175.94,0.04328345]
[1748332895410,5.6813,175.97,175.94,0.04328345]
[1748332895610,0.03692568,175.98,175.94,0.04328345]
[1748332895913,0.03692568,175.98,175.95,5.6817]
[1748332896203,0.03692568,175.98,175.94,0.04328345]
[1748332896604,0.03692568,175.98,175.94,5.72528345]
[1748332897613,0.03692568,175.98,175.94,0.04328345]
[1748332898318,5.6815,175.97,175.94,0.04328345]
[1748332899209,5.6816,175.96,175.94,0.04328345]
[1748332900016,5.71792568,175.98,175.94,0.04328345]
[1748332900316,0.03692568,175.98,175.94,0.04328345]
[1748332900811,1.8929,176.09,175.94,0.04328345]
[1748332901017,2.49072499,176.08,175.9,1.9832]
[1748332901315,2.49072499,176.07,176.01,5.6797]
[1748332901506,5.6789,176.05,176.01,5.6797]
[1748332901705,2.48929558,176.04,176.01,5.6797]
[1748332901910,0.04171864,176.04,176.01,0.03680291]
[1748332902317,8.09608926,176.13,176.01,0.03680291]
[1748332902512,2.49565122,176.12,175.93,2.0063]
[1748332902713,5.6786,176.06,175.93,2.0063]
[1748332902918,8.09608926,176.13,176.0,5.68]
[1748332903121,2.49473623,176.12,175.93,2.0063]
[1748332903417,5.71839448,176.05,176.01,0.0404056]
[1748332903619,0.04381238,176.05,176.01,1.99923467]
[1748332904212,5.6774,176.09,176.02,3.9083]
[1748332904417,11.3495,176.18,176.02,3.9083]
[1748332904623,2.49069791,176.17,176.02,3.9083]
[1748332904825,2.49069791,176.16,176.02,3.9083]
[1748332905014,2.49069791,176.15,176.02,3.9083]
[1748332905215,0.03742965,176.1,176.07,0.04082479]
[1748332905415,0.03664605,176.1,176.07,0.03822755]
[1748332906120,5.71404605,176.1,176.07,0.03822755]
[1748332906313,0.03664605,176.1,176.07,0.03822755]
[1748332906919,11.3453,176.24,176.07,0.03822755]
[1748332907120,12.61200649,176.23,176.02,3.9083]
[1748332907419,2.48301723,176.22,176.02,3.9083]
[1748332907620,8.09608926,176.19,176.02,3.9083]
[1748332907915,0.03665096,176.12,176.09,0.04101457]
[1748332908116,2.48301723,176.11,176.01,1.963]
[1748332908422,5.6788,176.05,176.01,1.963]
[1748332909110,5.6791,176.04,176.01,2.00494867]
[1748332909318,0.0410454,176.05,176.01,0.04194867]
[1748332909717,5.6793,176.04,176.01,0.04194867]
[1748332909921,0.0410454,176.05,176.01,0.04194867]
[1748332910317,5.6791,176.04,176.01,0.04194867]
[1748332911119,0.0410454,176.05,176.01,0.04194867]
[1748332911823,5.6792,176.04,176.01,0.04194867]
[1748332912018,0.0410454,176.05,176.01,0.04194867]
[1748332912522,5.6797,176.02,176.01,0.04194867]
[1748332912727,0.0410454,176.05,175.92,3.9615]
[1748332913025,8.09608926,176.06,175.92,3.9615]
[1748332913324,1.9717,176.05,175.92,3.9615]
[1748332913526,5.6258,176.05,175.92,3.9615]
[1748332913824,5.6258,176.05,175.97,0.0420712]
[1748332913825,5.72023686,176.0,175.97,0.0420712]
[1748332914329,0.03963686,176.0,175.97,0.0420712]
[1748332914720,0.03963686,176.0,175.97,5.7233712]
[1748332915220,0.03963686,176.0,175.97,0.0420712]
[1748332916323,17.12,176.16,175.97,0.0420712]
[1748332916530,5.5524,176.14,175.92,3.9615]
[1748332916725,5.5524,176.14,175.93,8.09608926]
[1748332916926,5.6778,176.08,175.93,8.09608926]
[1748332917125,5.5524,176.14,175.93,8.09608926]
[1748332917322,5.6785,176.06,175.93,8.09608926]
[1748332917630,0.04121269,176.01,175.98,0.04075496]
[1748332917831,0.04088209,176.01,175.98,0.03958155]
[1748332918325,17.12,176.2,175.98,0.03958155]
[1748332918530,8.09608926,176.2,175.97,8.09608926]
[1748332918722,5.6919,176.19,176.09,5.6772]
[1748332918924,5.676,176.14,176.09,5.6772]
[1748332919630,0.04047825,176.13,176.1,0.04204569]
[1748332921430,5.71667825,176.13,176.1,0.04204569]
[1748332921833,0.04047825,176.13,176.1,0.04204569]
[1748332922829,5.71687825,176.13,176.1,0.04204569]
[1748332923024,0.04047825,176.13,176.1,0.04204569]
[1748332923625,5.6768,176.11,176.1,0.04204569]
[1748332923934,0.04047825,176.13,176.0,1.8765]
[1748332924132,13.78798926,176.19,176.0,1.8765]
[1748332924333,8.09608926,176.15,176.0,1.8765]
[1748332924633,5.6777,176.09,176.0,1.8765]
[1748332924832,0.03679516,176.06,176.03,0.04009812]
[1748332925630,0.03679516,176.06,176.04,5.6788]
[1748332926026,0.03679516,176.06,176.03,0.04009812]
[1748332926732,0.03679516,176.06,176.04,5.679]
[1748332927038,0.03679516,176.06,176.03,0.04009812]
[1748332927435,0.03679516,176.06,176.05,5.6787]
[1748332928031,0.03679516,176.06,176.04,5.6789]
[1748332928434,0.03679516,176.06,176.03,0.04009812]
[1748332928627,5.6919,176.19,176.03,0.04009812]
[1748332928828,5.6919,176.19,176.0,1.8765]
[1748332929426,5.6768,176.12,176.0,1.8765]
[1748332929627,5.6768,176.12,176.08,5.6775]
[1748332929834,0.03757936,176.11,176.0,1.8765]
[1748332930034,0.03630081,176.07,176.0,1.8765]
[1748332930232,5.6919,176.19,176.11,5.6767]
[1748332930635,5.6758,176.14,176.0,1.8765]
[1748332930931,5.6919,176.19,176.1,5.677]
[1748332931130,5.6919,176.19,176.13,0.03988429]
[1748332931431,0.03662791,176.16,176.13,0.03988429]
[1748332931632,5.6758,176.14,176.13,0.03988429]
[1748332931829,0.03662791,176.16,176.13,0.03988429]
[1748332933137,5.6756,176.15,176.13,0.03988429]
[1748332933336,0.03662791,176.16,176.13,0.03988429]
[1748332933736,5.6755,176.15,176.13,0.03988429]
[1748332933942,0.03662791,176.16,176.13,0.03988429]
[1748332934340,0.03662791,176.16,176.03,5.6791]
[1748332934544,8.09608926,176.19,176.0,1.8765]
[1748332935140,5.6771,176.11,176.04,5.679]
[1748332935342,0.04228149,176.09,176.06,0.04088411]
[1748332935538,0.04252459,176.09,176.06,0.03705662]
[1748332936934,5.6778,176.08,176.06,0.03705662]
[1748332937141,0.04252459,176.09,176.06,0.03705662]
[1748332937445,5.6751,176.17,176.06,0.03705662]
[1748332937744,3.6964,176.23,176.01,8.09608926]
[1748332938043,3.6964,176.23,176.09,5.6771]
[1748332938343,0.03672949,176.18,176.14,0.04214151]
[1748332938542,5.6753,176.16,176.14,0.04214151]
[1748332938841,2.49562736,176.15,176.14,0.04214151]
[1748332939044,5.6751,176.17,176.14,0.04214151]
[1748332939231,2.4956048,176.16,176.14,0.04214151]
[1748332939434,0.03672949,176.18,176.14,0.04214151]
[1748332939638,5.6752,176.16,176.14,0.04214151]
[1748332940938,5.6755,176.15,176.14,0.04214151]
[1748332941442,0.03672949,176.18,176.14,0.04214151]
[1748332941638,5.6754,176.16,176.14,0.04214151]
[1748332942839,5.6755,176.15,176.14,0.04214151]
[1748332943546,5.6752,176.16,176.14,0.04214151]
[1748332943748,0.03672949,176.18,176.14,0.04214151]
[1748332943940,2.49742896,176.17,176.14,0.04214151]
[1748332944140,5.6755,176.15,176.14,0.04214151]
[1748332944638,8.17371774,176.15,176.14,0.04214151]
[1748332946042,8.17821774,176.15,176.0,1.8765]
[1748332946245,4.52101774,176.14,176.0,1.8765]
[1748332946444,2.49821774,176.13,176.04,5.679]
[1748332946744,2.49821774,176.12,176.04,5.679]
[1748332946943,2.49821774,176.11,176.04,5.679]
[1748332947250,0.03914485,176.11,176.07,0.04344364]
[1748332947448,0.04235907,176.11,176.07,0.04344364]
[1748332948446,0.04235907,176.11,176.1,5.6771]
[1748332951049,0.04235907,176.11,176.07,0.04344364]
[1748332951647,0.04235907,176.11,176.09,5.6772]
[1748332952245,0.04235907,176.11,176.07,0.04344364]
[1748332952751,0.04235907,176.11,176.08,5.6777]
[1748332952951,0.04235907,176.11,176.07,0.04344364]
[1748332954055,5.71925907,176.11,176.07,0.04344364]
[1748332954242,5.71925907,176.11,176.08,5.6775]
[1748332954753,0.04235907,176.11,176.07,0.04344364]
[1748332954950,2.49829866,176.1,176.07,0.04344364]
[1748332955148,2.49880549,176.09,176.07,0.04344364]
[1748332955349,0.04235907,176.11,176.07,0.04344364]
[1748332955649,2.49880548,176.1,176.07,0.04344364]
[1748332955953,2.49880548,176.09,176.07,0.04344364]
[1748332956251,0.04235907,176.11,176.07,0.04344364]
[1748332956453,2.49912417,176.1,176.07,0.04344364]
[1748332956653,0.04235907,176.11,176.07,0.04344364]
[1748332957156,0.04235907,176.11,176.09,5.6774]
[1748332958455,2.50205155,176.1,176.09,5.6774]
[1748332958758,2.50205155,176.1,176.08,5.6776]
[1748332958952,0.04235907,176.11,176.08,5.6776]
[1748332959148,2.50226384,176.1,176.07,0.04344364]
[1748332959350,0.04235907,176.11,176.07,0.04344364]
[1748332959550,0.04235907,176.11,176.1,5.6771]
[1748332962061,5.6749,176.17,176.13,5.676]
[1748332962258,2.50513679,176.16,176.13,5.676]
[1748332962460,2.50513679,176.15,176.13,5.676]
[1748332962660,2.50513679,176.14,176.13,5.676]
[1748332962859,5.6752,176.16,176.13,5.676]
[1748332963060,2.50521799,176.15,176.13,5.71501566]
[1748332963360,0.03946612,176.16,176.13,5.71501566]
[1748332963561,0.03946612,176.16,176.14,5.6758]
[1748332963562,2.50519291,176.15,176.14,5.6758]
[1748332963761,2.50519291,176.15,176.13,0.03901566]
[1748332964060,0.03946612,176.16,176.13,0.03901566]
[1748332964259,2.50485238,176.15,176.13,0.03901566]
[1748332964459,2.50485238,176.14,176.13,0.03901566]
[1748332964660,2.50485238,176.14,176.06,0.34467892]
[1748332964865,2.50485238,176.13,176.06,0.34467892]
[1748332965057,5.677,176.11,176.07,5.678]
[1748332965256,8.09608926,176.2,176.1,42.79214762]
[1748332965661,0.03973283,176.17,176.13,0.0419857]
[1748332966067,5.6758,176.14,176.13,0.0419857]
[1748332967163,0.03973283,176.17,176.13,0.0419857]
[1748332967569,5.6752,176.16,176.13,0.0419857]
[1748332967962,0.03973283,176.17,176.13,0.0419857]
[1748332968162,5.71483283,176.17,176.13,0.0419857]
[1748332968973,5.6752,176.16,176.13,0.0419857]
[1748332969269,0.03973283,176.17,176.13,0.0419857]
[1748332970270,0.03973283,176.17,176.16,5.6752]
[1748332971566,0.03973283,176.17,176.15,5.6754]
[1748332971769,7.01719634,176.27,176.13,0.0419857]
[1748332971973,7.01719634,176.27,176.14,5.6757]
[1748332972172,7.01719634,176.27,176.11,5.8307]
[1748332972571,8.06984567,176.28,176.13,5.6759]
[1748332972773,0.03741516,176.22,176.19,0.04208707]
[1748332973968,5.6741,176.2,176.19,0.04208707]
[1748332975568,0.03741516,176.22,176.19,0.04208707]
[1748332977265,0.03741516,176.22,176.19,5.71618707]
[1748332977470,0.03741516,176.22,176.19,0.04208707]
[1748332978777,5.71071516,176.22,176.19,0.04208707]
[1748332979178,5.6738,176.21,176.19,0.04208707]
[1748332979375,0.03741516,176.22,176.19,0.04208707]
[1748332979774,5.71071516,176.22,176.19,0.04208707]
[1748332980278,0.03741516,176.22,176.19,0.04208707]
[1748332980475,5.6738,176.21,176.19,0.04208707]
[1748332980677,0.03741516,176.22,176.19,0.04208707]
[1748332980878,5.6739,176.2,176.19,0.04208707]
[1748332981984,0.03741516,176.22,176.19,0.04208707]
[1748332983480,0.03741516,176.22,176.19,5.71618707]
[1748332983985,0.03741516,176.22,176.2,5.6739]
[1748332984184,0.03741516,176.22,176.19,0.04208707]
[1748332984384,7.01719634,176.37,176.19,0.04208707]
[1748332984678,7.01719634,176.37,176.11,17.1842]
[1748332984883,5.671,176.29,176.15,8.06984567]
[1748332985080,5.671,176.29,176.24,5.6723]
[1748332985281,0.03581001,176.28,176.25,0.03742145]
[1748332985476,0.04245056,176.28,176.25,0.03741472]
[1748332985781,0.04245056,176.28,176.25,5.70941472]
[1748332986181,0.04245056,176.28,176.26,5.6719]
[1748332987481,0.04245056,176.28,176.25,0.03741472]
[1748332987987,0.04245056,176.28,176.25,5.70961472]
[1748332988283,0.04245056,176.28,176.25,0.03741472]
[1748332988483,155.55215056,176.35,176.25,0.03741472]
[1748332989080,155.55215056,176.35,176.25,5.70961472]
[1748332989580,209.5287,176.5,176.25,8.10726039]
[1748332989778,1.8826,176.47,176.36,0.03989082]
[1748332989980,5.6671,176.41,176.4,3.263e-05]
[1748332990284,8.89834744,176.46,176.29,198.2]
[1748332990477,8.89834744,176.46,176.31,2.0654]
[1748332990683,5.6673,176.41,176.31,2.0654]
[1748332990989,0.04156035,176.38,176.34,0.04074995]
[1748332991188,5.6659,176.45,176.4,5.6673]
[1748332991385,7.01854744,176.46,176.36,198.2]
[1748332991686,12.68434744,176.46,176.39,5.6675]
[1748332991888,7.01854744,176.46,176.36,198.2]
[1748332992185,7.01854744,176.46,176.39,5.70814272]
[1748332992387,7.01854744,176.46,176.4,3.9408]
[1748332993681,7.01854744,176.46,176.39,0.04044272]
[1748332993682,8.06984567,176.51,176.39,0.04044272]
[1748332993990,5.6661,176.44,176.43,0.04360388]
[1748332994185,8.06984567,176.48,176.42,0.03646494]
[1748332994383,204.34,176.47,176.31,3.7945]
[1748332994582,8.06984567,176.44,176.31,3.7945]
[1748332995291,5.67,176.32,176.31,3.7945]
[1748332996389,0.03754389,176.33,176.31,3.7945]
[1748332997590,212.36984567,176.45,176.31,3.7945]
[1748332998185,204.3,176.45,176.31,3.7945]
[1748332998495,212.36984567,176.45,176.31,3.7945]
[1748332998689,204.3,176.45,176.36,0.04272536]
[1748332998889,5.6684,176.37,176.36,0.04272536]
[1748332999284,5.6682,176.38,176.36,0.04272536]
[1748333000188,5.6871,176.47,176.36,0.04272536]
[1748333000395,209.9871,176.47,176.4,0.0417854]
[1748333000898,5.6671,176.41,176.4,0.0417854]
[1748333001594,204.3,176.52,176.4,0.0417854]
[1748333001795,204.3,176.52,176.44,0.04054362]
[1748333001796,1.9629,176.51,176.44,0.04054362]
[1748333001996,5.6658,176.45,176.44,0.04054362]
[1748333002296,1.9629,176.51,176.32,204.28]
[1748333002489,222.58284567,176.55,176.32,204.28]
[1748333002691,224.64224567,176.55,176.33,8.06984567]
[1748333002995,214.513,176.55,176.33,8.06984567]
[1748333003190,0.04149197,176.46,176.42,0.04294555]
[1748333003391,0.0361032,176.46,176.42,210.80301154]
[1748333003585,0.0361032,176.46,176.43,5.9077]
[1748333003801,0.0361032,176.46,176.45,5.6658]
[1748333005099,5.6645,176.5,176.45,5.6658]
[1748333005297,210.76,176.55,176.46,5.6652]
[1748333005693,490.04,176.56,176.43,5.9077]
[1748333005888,490.04,176.56,176.48,0.04026921]
[1748333006298,212.5579,176.6,176.48,0.04026921]
[1748333006491,212.5579,176.6,176.52,0.03606475]
[1748333006893,210.72,176.6,176.52,0.03606475]
[1748333007392,210.72,176.62,176.52,0.03606475]
[1748333007596,212.63,176.62,176.52,0.03606475]
[1748333007796,5.6632,176.54,176.52,0.03606475]
[1748333008197,212.63,176.62,176.52,0.03606475]
[1748333008396,1.91,176.62,176.52,0.03606475]
[1748333008893,5.6625,176.56,176.52,0.03606475]
[1748333009092,210.66,176.63,176.52,0.04235854]
[1748333009292,5.662,176.57,176.56,8.463e-05]
[1748333009501,5.32344879,176.57,176.56,8.463e-05]
[1748333009999,5.6642,176.5,176.49,3.27790185]
[1748333011699,5.6642,176.5,176.49,5.64118435]
[1748333011902,210.62,176.56,176.49,5.64118435]
[1748333012401,8.06984567,176.53,176.46,32.27005893]
[1748333012701,9.97864567,176.52,176.46,14.86555893]
[1748333013101,5.6652,176.47,176.46,14.86555893]
[1748333013302,9.97864567,176.52,176.46,9.62311815]
[1748333013498,0.04205071,176.51,176.47,0.03743264]
[1748333014002,5.6649,176.48,176.47,0.03743264]
[1748333014200,5.6649,176.48,176.47,3.264e-05]
[1748333017400,0.04205071,176.51,176.47,3.264e-05]
[1748333017807,0.04205071,176.51,176.4,2.29036829]
[1748333018005,9.97864567,176.52,176.4,2.29036829]
[1748333018203,8.06984567,176.44,176.39,6.65375439]
[1748333018399,199.873357,176.43,176.36,66.35958464]
[1748333018702,5.6694,176.34,176.33,61.13018081]
[1748333018906,0.04202342,176.35,176.32,0.03961284]
[1748333019207,5.6697,176.33,176.32,6.901e-05]
[1748333019909,11.3497,176.33,176.32,6.901e-05]
[1748333020399,204.0,176.34,176.26,13.64131543]
[1748333021004,11.3311,176.46,176.26,13.64131543]
[1748333021212,8.06984567,176.37,176.26,13.64131543]
[1748333021502,0.04109828,176.33,176.3,0.03617565]
[1748333021905,0.04109828,176.33,176.2,5.7703]
[1748333022106,204.04,176.35,176.2,5.7703]
[1748333022906,0.041848,176.29,176.28,5.6713]
[1748333023113,0.04355391,176.3,176.27,0.04328876]
[1748333023409,0.03805902,176.3,176.27,0.04207655]
[1748333026620,0.03805902,176.3,176.27,5.71347655]
[1748333027011,0.03805902,176.3,176.27,0.04207655]
[1748333027207,204.12,176.44,176.27,0.04207655]
[1748333027412,204.12,176.44,176.27,62.0]
[1748333028113,0.04080108,176.36,176.33,0.0380322]
[1748333029320,5.70950108,176.36,176.33,0.0380322]
[1748333029919,5.6691,176.35,176.33,0.0380322]
[1748333030313,5.6694,176.34,176.33,0.0380322]
[1748333030626,0.04080108,176.36,176.33,0.0380322]
[1748333032026,5.70960108,176.36,176.33,0.0380322]
[1748333032226,0.04080108,176.36,176.33,0.0380322]
[1748333034026,5.6694,176.34,176.33,0.0380322]
[1748333035414,5.671,176.29,176.2,5.7703]
[1748333035620,5.671,176.29,176.21,107.72]
[1748333036026,204.14,176.34,176.2,209.9103]
[1748333036324,204.14,176.34,176.2,317.6303]
[1748333036522,0.03669005,176.29,176.25,0.03626917]
[1748333036722,5.6718,176.27,176.25,0.03626917]
[1748333037326,5.6719,176.26,176.25,0.03626917]
[1748333038026,5.6716,176.28,176.25,0.03626917]
[1748333038225,0.03669005,176.29,176.25,0.03626917]
[1748333038427,5.6717,176.27,176.25,0.03626917]
[1748333038621,0.03669005,176.29,176.25,0.03626917]
[1748333039133,5.70789005,176.29,176.25,0.03626917]
[1748333039325,0.03669005,176.29,176.25,0.03626917]
[1748333039531,5.6713,176.28,176.25,0.03626917]
[1748333040828,5.6717,176.27,176.25,0.03626917]
[1748333041033,0.03669005,176.29,176.25,0.03626917]
[1748333041531,198.0,176.39,176.28,5.6713]
[1748333041936,5.6697,176.34,176.28,5.6713]
[1748333042226,198.0,176.39,176.28,5.6713]
[1748333042429,0.04080946,176.35,176.32,0.04068842]
[1748333042637,5.6694,176.34,176.32,0.04068842]
[1748333042828,0.04080946,176.35,176.32,0.04068842]
[1748333043035,5.6694,176.34,176.32,0.04068842]
[1748333043230,0.04080946,176.35,176.32,0.04068842]
[1748333043837,5.6697,176.33,176.32,0.04068842]
[1748333044925,0.04080946,176.35,176.32,0.04068842]
[1748333045130,0.04080946,176.35,176.22,5.673]
[1748333045330,5.6712,176.29,176.2,5.7703]
[1748333045537,5.6712,176.29,176.2,113.4903]
[1748333045837,5.6712,176.29,176.23,5.6726]
[1748333046231,0.04033819,176.28,176.24,0.04322277]
[1748333046838,0.04033819,176.28,176.26,5.6717]
[1748333047139,0.04033819,176.28,176.24,0.04322277]
[1748333048237,5.6717,176.27,176.24,0.04322277]
[1748333049443,5.672,176.26,176.24,0.04322277]
[1748333049935,5.6723,176.25,176.24,0.04322277]
[1748333051340,0.04033819,176.28,176.24,0.04322277]
[1748333052035,198.02,176.35,176.24,0.04322277]
[1748333052243,198.02,176.35,176.27,5.6714]
[1748333052244,5.6703,176.32,176.27,5.6714]
[1748333052642,5.6703,176.32,176.2,5.7703]
[1748333053039,0.04348753,176.28,176.24,0.03818096]
[1748333053240,0.04348753,176.28,176.27,5.6716]
[1748333058042,0.04348753,176.28,176.24,0.039257]
[1748333058043,5.71498753,176.28,176.24,0.039257]
[1748333058243,0.04348753,176.28,176.24,0.039257]
[1748333059952,5.6719,176.27,176.24,0.039257]
[1748333060253,0.04348753,176.28,176.24,0.039257]
[1748333060452,5.6717,176.27,176.24,0.039257]
[1748333061053,5.71478753,176.28,176.24,0.039257]
[1748333062847,5.6717,176.27,176.24,0.039257]
[1748333063050,0.04348753,176.28,176.24,0.039257]
[1748333063657,5.6718,176.27,176.24,0.039257]
[1748333063851,0.04348753,176.28,176.24,0.039257]
[1748333064246,5.6722,176.26,176.24,0.039257]
[1748333064442,0.04348753,176.28,176.24,0.039257]
[1748333065854,203.75488753,176.28,176.24,0.039257]
[1748333066358,7.01854744,176.31,176.28,5.6712]
[1748333066554,7.01854744,176.31,176.23,107.74]
[1748333066951,7.01854744,176.31,176.29,5.6707]
[1748333067256,7.01854744,176.31,176.23,107.74]
[1748333067455,0.03832426,176.29,176.28,5.6713]
[1748333067856,0.03832426,176.29,176.25,0.03725647]
[1748333068061,0.03832426,176.29,176.28,5.6713]
[1748333068251,198.04,176.38,176.25,0.03725647]
[1748333068554,5.6697,176.33,176.29,5.6709]
[1748333068859,198.04,176.38,176.23,107.74]
[1748333069254,0.04309705,176.32,176.29,0.03990552]
[1748333069649,5.6706,176.31,176.29,0.03990552]
[1748333069853,0.04309705,176.32,176.29,0.03990552]
[1748333070060,193.88309705,176.32,176.22,0.34268392]
[1748333070263,5.6719,176.27,176.22,0.34268392]
[1748333070757,5.672,176.26,176.22,0.34268392]
[1748333071056,5.71399913,176.26,176.22,0.38244511]
[1748333071758,5.6723,176.25,176.22,0.38244511]
[1748333072156,5.6723,176.25,176.22,0.03976119]
[1748333072358,0.04199913,176.26,176.22,0.03976119]
[1748333072359,5.71399913,176.26,176.22,0.03976119]
[1748333072556,0.04199913,176.26,176.22,0.03976119]
[1748333073761,5.6723,176.25,176.22,0.03976119]
[1748333074260,5.6727,176.24,176.22,0.03976119]
[1748333074659,193.90199913,176.26,176.22,0.03976119]
[1748333074849,5.6725,176.25,176.22,0.03976119]
[1748333075459,5.6727,176.24,176.22,0.03976119]
[1748333075856,193.90199913,176.26,176.22,0.03976119]
[1748333076057,199.59399913,176.26,176.22,0.03976119]
[1748333076364,5.71399913,176.26,176.22,0.03976119]
[1748333076563,0.04199913,176.26,176.22,0.03976119]
[1748333077864,5.6723,176.25,176.22,0.03976119]
[1748333078364,0.04199913,176.26,176.22,0.03976119]
[1748333081662,5.71399913,176.26,176.22,0.03976119]
[1748333081868,0.04199913,176.26,176.22,0.03976119]
[1748333082268,5.6728,176.24,176.22,0.03976119]
[1748333082567,0.04199913,176.26,176.22,0.03976119]
[1748333082766,5.6729,176.23,176.22,0.03976119]
[1748333083568,0.04199913,176.26,176.13,2.0171]
[1748333083866,193.88,176.28,176.13,2.0171]
[1748333084667,5.6736,176.21,176.19,0.04076904]
[1748333084969,0.03593728,176.23,176.19,0.04076904]
[1748333085379,5.6739,176.2,176.19,0.04076904]
[1748333086874,5.6736,176.21,176.19,0.04076904]
[1748333087170,0.03593728,176.23,176.19,0.04076904]
[1748333090574,5.70883728,176.23,176.19,0.04076904]
[1748333091474,0.03593728,176.23,176.19,0.04076904]
[1748333091871,0.03593728,176.23,176.19,5.71486904]
[1748333092176,0.03593728,176.23,176.19,0.04076904]
[1748333092473,5.70883728,176.23,176.19,0.04076904]
[1748333092862,0.03593728,176.23,176.19,0.04076904]
[1748333093069,0.03593728,176.23,176.2,5.6736]
[1748333093777,0.03593728,176.23,176.21,5.6734]
[1748333094170,0.03593728,176.23,176.19,0.04076904]
[1748333094374,0.03593728,176.23,176.22,5.6732]
[1748333095077,0.03593728,176.23,176.19,0.04076904]
[1748333095479,0.03593728,176.23,176.2,5.6738]
[1748333096481,0.03593728,176.23,176.19,5.71486904]
[1748333096881,0.03593728,176.23,176.19,0.04076904]
[1748333097972,5.6735,176.22,176.19,0.04076904]
[1748333098172,0.03593728,176.23,176.19,0.04076904]
[1748333098572,5.6738,176.21,176.19,0.04076904]
[1748333098772,0.03593728,176.23,176.19,0.04076904]
[1748333098976,5.6739,176.2,176.19,0.04076904]
[1748333100376,187.98,176.21,176.1,9.756]
[1748333100677,1.9581,176.22,176.1,4.079]
[1748333100877,188.0,176.21,176.1,4.079]
[1748333101280,0.04224649,176.17,176.14,0.04068972]
[1748333102079,5.6755,176.15,176.14,0.04068972]
[1748333102276,188.0,176.15,176.06,0.34268392]
[1748333103279,0.0383902,176.12,176.09,0.0415103]
[1748333104176,5.7150902,176.12,176.09,0.0415103]
[1748333104383,0.0383902,176.12,176.09,0.0415103]
[1748333105085,5.6771,176.1,176.09,0.0415103]
[1748333107077,5.6787,176.05,175.99,1.9926]
[1748333107271,8.06984567,176.13,175.99,3.8644]
[1748333107576,181.92,176.12,175.99,3.8644]
[1748333107779,181.92,176.12,176.02,5.6796]
[1748333107983,0.03990724,176.09,176.05,0.04194282]
[1748333108683,5.6778,176.08,176.05,0.04194282]
[1748333108880,0.03990724,176.09,176.05,0.04194282]
[1748333110174,5.6782,176.07,176.05,0.04194282]
[1748333110372,0.03990724,176.09,176.05,0.04194282]
[1748333110584,5.6783,176.07,176.05,0.04194282]
[1748333110776,0.03990724,176.09,176.05,0.04194282]
[1748333111183,5.6783,176.07,176.05,0.04194282]
[1748333111383,0.03990724,176.09,176.05,0.04194282]
[1748333112785,181.99990724,176.09,176.05,0.04194282]
[1748333113187,0.03990724,176.09,176.07,5.6778]
[1748333113394,0.03990724,176.09,176.05,0.04194282]
[1748333113689,181.96,176.14,176.05,0.04194282]
[1748333114284,5.677,176.11,176.07,5.678]
[1748333114589,0.0425289,176.11,176.07,0.04224281]
[1748333114790,5.7195289,176.11,176.07,0.04224281]
[1748333114977,0.0425289,176.11,176.07,0.04224281]
[1748333115387,5.7194289,176.11,176.08,5.6775]
[1748333116390,5.7194289,176.11,176.07,2.08874281]
[1748333116391,5.7194289,176.11,176.07,7.76674281]
[1748333116785,0.0425289,176.11,176.07,0.04224281]